Cogmind - Beta 16 @@@ ROGUE MODE // 2026.01.24 @ 12:09:10 Player: throbalt Result: Core destroyed Performance ------------- Evolutions (0) 0 Regions Visited (2) 400 Robots Destroyed (2) 10 Value Destroyed (74) 74 Prototype IDs (0) 0 Alien Tech Used (0) 0 Bonus (0) 0 TOTAL SCORE: 484 Bonus ------- None Cogmind --------- Core Integrity 0/250 Matter 272/300 Energy 100/100 System Corruption 46% Temperature Cool (0) Movement Core (450) Ox8 Location -10/Subcaves Parts ------- > --- POWER (1) -------- Neutrino Core > --- PROPULSION (2) --- Aluminum Leg Aluminum Leg > --- UTILITY (2) ------ Small Storage Unit Power Shielding > --- WEAPON (2) ------- Subdweller Machine Gun Battle Cannon > --- INVENTORY (8) ---- Makeshift Power Source Improved Heat Sink Terrain Scanner Scrap Shield Subdweller Laser Subdweller Laser Battle Rifle Peak State ------------ > --- POWER ------------ Neutrino Core > --- PROPULSION ------- Subdweller Monowheel Subdweller Monowheel > --- UTILITY ---------- Small Storage Unit Power Shielding > --- WEAPON ----------- Battle Rifle Subdweller Machine Gun > --- INVENTORY -------- Ion Engine Aluminum Leg Aluminum Leg Terrain Scanner Scrap Shield Subdweller Laser Light Assault Rifle [Rating: 17] Favorites ----------- Power Neutrino Core Engine Ion Engine Power Core Neutrino Core Propulsion Compact Wheel Leg Aluminum Leg Wheel Compact Wheel Utility Small Storage Unit Storage Small Storage Unit Protection Power Shielding Weapon Subdweller Machine Gun Ballistic Gun Subdweller Machine Gun Ballistic Cannon Battle Cannon Build | -11 -10 -10 ------- Run | Yrd Mat Sub Slots Evolved . | . . . Power . | . . . Propulsion . | . . . Utility . | . . . Weapon . | . . . Parts Attached 17 | 6 1 10 Power 2 | 1 . 1 Engine 1 | 1 . . Core 1 | . . 1 Reactor . | . . . Propulsion 8 | 2 . 6 Treads . | . . . Leg 2 | . . 2 Wheel 6 | 2 . 4 Hover . | . . . Flight . | . . . Utility 2 | 1 1 . Device . | . . . Storage 1 | 1 . . Processor . | . . . Hackware . | . . . Protection 1 | . 1 . Artifact . | . . . Weapon 5 | 2 . 3 Energy Gun . | . . . Energy Cannon . | . . . Ballistic Gun 4 | 2 . 2 Ballistic Cannon 1 | . . 1 Launcher . | . . . Special Weapon . | . . . Impact Weapon . | . . . Slashing Weapon . | . . . Piercing Weapon . | . . . Special Melee Weapon . | . . . Unidentified Prototypes . | . . . Parts Lost 2 | . . 2 Power . | . . . Propulsion 2 | . . 2 Utility . | . . . Weapon . | . . . Highest Loss Streak 1 | . . 1 To Critical Strikes . | . . . Average Backups 6 | 2 5 6 Power . | . 1 1 Propulsion . | 1 2 . Utility 2 | . 1 2 Weapon 2 | . 1 2 Tool/Special . | . . . Unused Backups 11 | . . 11 Power 2 | . . 2 Propulsion . | . . . Utility 4 | . . 4 Weapon 5 | . . 5 Tool/Special . | . . . Average Slot Usage (%) 94 | . 96 94 Engine 2 | . 14 . Core 11 | . . 13 Leg 5 | . . 5 Wheel 17 | . 28 16 Storage 14 | . 14 14 Protection 13 | . 11 14 Ballistic Gun 18 | . 28 17 Ballistic Cannon 9 | . . 10 Peak Build Rating 17 | 6 7 17 Average Rating 13 | 4 6 14 On Entrance 4 | . 6 7 Avg Prop Armor Cover (%) 4 | . . 4 Naked Turns . | . . . Heaviest Build 27 | 12 13 27 Greatest Support 40 | 32 32 40 Greatest Overweight (x) 8 | 2 . 8 Average Overweight (x) . | . . . Largest Inventory Capacity 8 | 8 8 8 Average Capacity 7 | 7 8 8 Most Carried 8 | 4 7 8 Average Carried 7 | 2 5 7 Final Capacity 8 | 8 8 8 Final Carried 8 | 4 7 8 Class Distribution -------------------- 91% | Mutant 8% | Scavenger-Mutant Dominant Class ---------------- Mutant | -10/Materials Mutant | -10/Subcaves Resources | -11 -10 -10 ----------- Run | Yrd Mat Sub Matter Collected 453 | 260 16 177 Remotely . | . . . Salvage Created 94 | . 44 50 Parts 2 | . 1 1 Haulers Intercepted . | . . . Recyclers Shooed . | . . . Parts Field Recycled . | . . . Retrieved Matter . | . . . Parts Self-Destructed 6 | . . 6 Prevented . | . . . Parts Restored . | . . . Kills | -11 -10 -10 ------- Run | Yrd Mat Sub Combat Hostiles Destroyed 2 | . 1 1 Guns 1 | . 1 . Cannons 1 | . . 1 Classes Destroyed 2 | . 1 1 Grunt 1 | . 1 . Subdweller 1 | . . 1 Best Kill Streak 1 | . 1 1 Combat Bots Only 1 | . 1 1 Max Kills in Single Turn 1 | . 1 1 Gunslinging . | . . . Exploded . | . . . Melee . | . . . Uniques/NPCs Destroyed . | . . . Combat | -11 -10 -10 -------- Run | Yrd Mat Sub Hostile Shots Fired 16 | . 3 13 Missed 5 | . . 5 Hits 11 | . 3 8 Projectile 11 | . 3 8 AOE 1 | . . 1 Damage Taken 636 | . 33 603 Core 250 | . 10 240 Absorbed by Shields . | . . . Redirected to Shielding 9 | . . 9 Core Remaining (%) 100 | 100 . . Volleys Fired 15 | . 4 11 Largest 2 | . 2 2 Hottest 63 | . 40 63 Shots Fired 30 | . 8 22 Gun 21 | . 8 13 Cannon 9 | . . 9 Launcher . | . . . Special . | . . . Kinetic 30 | . 8 22 Thermal . | . . . Explosive . | . . . Electromagnetic . | . . . Robot Hit Streak 7 | . 2 7 Robot Miss Streak 3 | . 3 3 Penetration Max . | . . . Secondary Targets . | . . . Shots Hit Robots 14 | . 3 11 Core Hits 4 | . 2 2 Critical Kills . | . . . Critical Parts Destroyed . | . . . Critical Strikes . | . . . Melee Attacks . | . . . Impact . | . . . Slashing . | . . . Piercing . | . . . Sneak Attacks . | . . . Combat Hostiles . | . . . Follow-up Attacks . | . . . Damage Inflicted 293 | . 26 267 Guns 112 | . 26 86 Cannons 86 | . . 86 Explosions . | . . . Melee . | . . . Ramming 95 | . . 95 Kinetic 198 | . 26 172 Thermal . | . . . Explosive . | . . . Electromagnetic . | . . . Impact . | . . . Slashing . | . . . Piercing . | . . . Highest Corruption 46 | . . 46 Average Corruption 18 | . . 18 Corruption Purged . | . . . Corruption Blocked . | . . . Effects 10 | . . 10 Message Errors 1 | . . 1 Matter Fused 4 | . . 4 Heat Flow Errors 1 | . . 1 Energy Discharges 2 | . . 2 Data Loss (minor) 2 | . . 2 Overload Shots . | . . . Overflow Damage . | . . . Projectiles . | . . . Explosions . | . . . Melee . | . . . Knockbacks 1 | . . 1 Impact . | . . . Kinetic 1 | . . 1 Secondary . | . . . Self-Inflicted Damage 95 | . . 95 Shots . | . . . Rammed . | . . . Targets Rammed . | . . . Kicked . | . . . Crushed . | . . . Highest Temperature 70 | . 12 70 Average Temperature 19 | . 8 47 Received Heat Transfer 54 | . 18 36 Siege Activations . | . . . Martial Activations . | . . . Shielding Activations . | . . . Robots Disrupted . | . . . Combat Hostiles . | . . . Robots Corrupted . | . . . Combat Hostiles . | . . . Parts Fried . | . . . Impact Corruptions . | . . . Robots Melted . | . . . Combat Hostiles . | . . . Parts Melted . | . . . Heat Transferred . | . . . Parts Sabotaged . | . . . Parts Stolen . | . . . Parts Stripped . | . . . Power Chain Reactions . | . . . Alert | -11 -10 -10 ------- Run | Yrd Mat Sub Maximum Alert Level . | . . . Low Security (%) 100 | 100 100 . Level 1 . | . . . Level 2 . | . . . Level 3 . | . . . Level 4 . | . . . Level 5 . | . . . High Security . | . . . Max Security . | . . . Peak Influence 30 | . 30 . Initial . | . . . Average 3 | . 4 . Influence Increases 39 | . 39 . Destroy 0b10 Robot/C 20 | . 20 . Destroy Leader 10 | . 10 . Successful Hack 9 | . 9 . Influence Decreases 39 | . 39 . Time Decay 39 | . 39 . Squads Dispatched 1 | . 1 . Investigation 1 | . 1 . Extermination . | . . . Reinforcement . | . . . Assault . | . . . Garrison . | . . . Intercept . | . . . Searches Triggered . | . . . Construction Impeded . | . . . Haulers Reinforced . | . . . Active Scanning Responses . | . . . Cargo Convoy Interrupts . | . . . Stealth | -11 -10 -10 --------- Run | Yrd Mat Sub Distress Signals 1 | . 1 . Communications Jammed . | . . . Distress Signals . | . . . Times Spotted 14 | . 3 11 Peak Tracking Total 6 | . 2 6 Tactical Retreats 1 | . . 1 Traps | -11 -10 -10 ------- Run | Yrd Mat Sub Traps Triggered 2 | . 1 1 Indirectly . | . . . Trap Hack Attempts . | . . . Triggered . | . . . Disarmed . | . . . Reprogrammed . | . . . Reused . | . . . Traps Extracted . | . . . Installed . | . . . Triggered . | . . . Machines | -11 -10 -10 ---------- Run | Yrd Mat Sub Machines Disabled . | . . . Max in Single Turn . | . . . Machines Repaired . | . . . Machines Dismantled . | . . . Machines Sabotaged . | . . . Overloaded Fab Kills . | . . . Hacking | -11 -10 -10 --------- Run | Yrd Mat Sub Machines Accessed 3 | . 2 1 Terminals 2 | . 2 . Fabricators . | . . . Repair Stations . | . . . Recycling Units . | . . . Scanalyzers . | . . . Garrison Access . | . . . Total Hacks 8 | . 3 5 Successful 7 | . 2 5 Failed 1 | . 1 . Catastrophic . | . . . Database Lockouts . | . . . Manual 1 | . . 1 Terminals 3 | . 3 . Fabricators . | . . . Repair Stations . | . . . Recycling Units . | . . . Scanalyzers . | . . . Garrison Access . | . . . Terminal Hacks 7 | . 2 5 Record 5 | . . 5 Locate Traps 1 | . 1 . Zone Layout 1 | . 1 . Fabricator Hacks . | . . . Repair Station Hacks . | . . . Recycling Unit Hacks . | . . . Scanalyzer . | . . . Garrison Access Hacks . | . . . Unauthorized Hacks . | . . . Terminals . | . . . Fabricators . | . . . Repair Stations . | . . . Recycling Units . | . . . Scanalyzers . | . . . Garrison Access . | . . . Data Cores Recovered . | . . . Used . | . . . Hacking Detections 1 | . 1 . Full Trace Events . | . . . Feedback Events . | . . . Feedback Blocked . | . . . Robot Schematics Acquired . | . . . Robots Built . | . . . Authchips . | . . . Time . | . . . Total Robot Build Rating . | . . . Part Schematics Acquired . | . . . Parts Built . | . . . Authchips . | . . . Time . | . . . Total Part Build Rating . | . . . Part Studies Acquired . | . . . Parts Repaired . | . . . Time . | . . . Parts Recycled . | . . . Recycled Matter . | . . . Retrieved Matter . | . . . Retrieved Components . | . . . Parts Scanalyzed . | . . . Part Schematics Acquired . | . . . Parts Damaged . | . . . Bothacking | -11 -10 -10 ------------ Run | Yrd Mat Sub Used RIF Installer . | . . . Robots Hacked . | . . . Non-combat . | . . . Combat . | . . . Robot Hacks Applied . | . . . Relay Couplers Released . | . . . Fabnet Peak Effective % . | . . . Robots Rewired . | . . . Allies Hacked . | . . . Hacks Repelled . | . . . Allies | -11 -10 -10 -------- Run | Yrd Mat Sub Total Allies . | . . . Largest Group . | . . . Highest-Rated Group . | . . . Highest-Rated Ally . | . . . Total Orders . | . . . Ally Attacks . | . . . Total Damage . | . . . Kills . | . . . Allies Corrupted . | . . . Allies Melted . | . . . Intel | -11 -10 -10 ------- Run | Yrd Mat Sub Active Infowar (turns) . | . . . Robot Analysis Total . | . . . Derelict Logs Recovered 1 | . . 1 Drone Launches . | . . . Drone Recoveries . | . . . Exploration | -11 -10 -10 ------------- Run | Yrd Mat Sub Turns Passed 2795 | 66 319 2410 Spaces Moved 1716 | 53 212 1451 Core 67 | 6 . 61 Treads . | . . . Legs 145 | . . 145 Wheels 1504 | 47 212 1245 Hover . | . . . Flight . | . . . Fastest Speed 50 | 50 100 100 Average Speed 126 | 100 100 130 Slowest Speed 450 | 150 100 450 Overloaded Moves . | . . . Propulsion Burnouts . | . . . Robots Hopped . | . . . Potential Cave-ins 1 | . . 1 Cave-ins Triggered . | . . . Exploration Rate (%) 28 | 4 31 49 Regions Visited 2 Branch Regions 1 Pre-discovered Areas 1 | . . 1 Known Exits Taken . | . . . Unknown Exits Taken 2 | 1 1 . Scrap Searched 2 | . . 2 Spaces Dug . | . . . Terrain Destroyed . | . . . Melee . | . . . Projectile . | . . . AOE . | . . . Terrain Rammed 53 | . . 53 Walls Destroyed . | . . . Machines Disabled 1 | . . 1 Actions | -11 -10 -10 --------- Run | Yrd Mat Sub Total 2149 | 62 312 1775 Wait 318 | . 93 225 Move 1714 | 52 211 1451 Hop . | . . . Pick Up 16 | 4 3 9 Fast Attach 12 | 6 1 5 Attach 2 | . . 2 Detach . | . . . Swap 4 | . . 4 Drop 16 | . . 16 Fire 15 | . 4 11 Melee . | . . . Ram 52 | . . 52 Kick . | . . . Crush . | . . . Escape Stasis . | . . . Rewire . | . . . Trap . | . . . Miscellaneous . | . . . Route ------- -11/Scrapyard -10/Materials (discovered 2 exits: [Min] / *Sub) -10/Subcaves History --------- Turn | Location | Event 17 | -11/Scrapyard | Discovered new exit (range 16) 67 | -11/Scrapyard | Entered Materials 231 | -10/Materials | Discovered new exit (range 11) 317 | -10/Materials | Build established: Mutant 361 | -10/Materials | Discovered new exit (range 8) 386 | -10/Materials | Entered Subcaves 408 | -10/Subcaves | A swath of the cavern ceiling suddenly collapsed 428 | -10/Subcaves | Ambushed by swarm of Subdwellers 535 | -10/Subcaves | Learned Materials emergency access door positions 659 | -10/Subcaves | Shifting Twisted Machinery released Battle Cannon 1513 | -10/Subcaves | Visited Clippyterm 1516 | -10/Subcaves | Learned location of Deep Caves (-7) 1516 | -10/Subcaves | Learned Research machine intel 1597 | -10/Subcaves | A swath of the cavern ceiling suddenly collapsed 2626 | -10/Subcaves | Core integrity fell below 50% 2653 | -10/Subcaves | System corruption reached 10% 2716 | -10/Subcaves | Core integrity fell below 20% 2756 | -10/Subcaves | System corruption reached 30% 2796 | -10/Subcaves | Core destroyed Last Messages --------------- Slammed into Twisted Machinery. Destabilizing: System corrupted (+2). Slammed into Twisted Machinery. Destabilizing: System corrupted (+2). Slammed into Twisted Machinery. Destabilizing: Core damaged (-5). Slammed into Twisted Machinery. Destabilizing: Core damaged (-10). System corrupted: Matter fused (-9). Slammed into Twisted Machinery. Destabilizing: System corrupted (+2). Slammed into Twisted Machinery. Destabilizing: Core damaged (-10). Slammed into Twisted Machinery. Destabilizing: System corrupted (+2). Destabilizing: System corrupted (+1). QGJSBK/YWVA|I#U/RYW/A,J 4>7AX/3Y PP Slammed into Twisted Machinery. Destabilizing: System corrupted (+2). Slammed into Twisted Machinery. Map ----- +----------------------------------------------------+ | %%## #?# #### #???????????????????????????? | | ####?# ##???????????????????????????? | | ###????## #????????????????????????????? | | ####???????# # ##????????????????????????????? | | ####???????# ######?????????????????????????????? | | ####????# #?????????????????????????????????? | | ?????# ##?????????????????????????????????? | | ### ??????# #?????????????????????????????????? | | # ## # ### #?????????????????????????????????? | | ## #?????????????????????????????????? | | ## #### ### ##?????????????????????????????????? | | # #######?# ####???????????????????????????????? | | # # ## ### ##???????????????? ##???????????? | | ## # #??????????????? #???????????? | | # # ##### #???????####### #????????????? | | ########?### #?????######### #?????????????? | | ?????????# # ##????### "" ""# #??????????????? | | ?????????# # #????## #"####""#??????????????? | | ?????????# ## #????##"#######"#??????????????? | | ?????????## ## ######## #???? ##??????????????? | | ?????????## ## # # ## #????? #??????????????? | | ?????????# # ###?????#??????????????? | | ?????????# ## ####"#????????????????????? | | ?????????# ######## ####;#?????????????????????? | | ????????### #????# g ##;###?????????????????? | | ????????#"" "#????### #@""; ;#?????????????????? | | ????????#" "##?????#######" #;#????????????????? | | ????????#" "#?????????????" "?????????????????? | | ????????#"" ##?????????????# #????????????????? | | ????????#"" #######??????????????????????????? | | ????????## ^ ##?????????????????????????? | | #####????# %& #???????????????????????? | | # # ###### ## ""???????????????????????? | | ## ! ##? ^ " ???????????????????????? | | *% #??? ""???????????????????????? | | ##### #???## "????????????????????????? | | ##???## #?????# ###????????????????????????? | | #?????## #??????##??????????????????????????? | | #??????# ^ ##????????????????????????????????? | | #??????## #????????????????????????????????? | | #???????#### ##???????????????????????????????? | | #??????????## ##??####????????????????????????? | | #????????????# #### ###??????????????????????? | | #????????????# ## ###????????????????????? | | #######?????## ######??##???????????? | | # # ####### ### ####????????? | | = ## ## ########## | | = ## ## # # #"## | | # ## #### ##### #### " | | ###### #??## #???# ###??# !# # # ##"" | +----------------------------------------------------+ Best States ------------- Heat Dissipation 25 Energy Generation 19 Energy Capacity 315 Matter Stores 300 Matter Capacity 300 Sight Range 16 Terrain Scan Density 10 Power Shielding 33 Evasion (%) 40 Item Schematics ----------------- None Robot Schematics ------------------ None Fabricated ------------ Nothing Repaired ---------- Nothing Studied --------- None Alien Tech Used ----------------- None Achievements -------------- None Challenges ------------ None Game ------ Seed JunkTowerBrace Manual? 0 Play Time 00:21:57 Cumulative 7.5 hours Start 2026.01.24 @ 00:06:15 End 2026.01.24 @ 12:09:10 Sessions 2 Manual Loads 0 Difficulty Rogue Special Mode None Game No. 10 Rogue 8 Adventurer 0 Explorer 2 Win Type - Total 0 Types 0/0/0/0/0/0/0/0/0/0 Lore% 3 Gallery% 12 Achievement% 10 Wizard Run 0 Options --------- Layout 1 ASCII 0 Keyboard 1 Movement Vi Keybinds 0 Fullscreen 1 Font 24/Smallcaps Map View 50x35 Zoom Use 0% Tactical HUD 0 Map Filters NONE Filters NONE Steam 1 RUN: 7a4f2e04-3b47-49c7-87d4-87f6d652e771